{"text_format":"1","workbook":"xlsx","n_sheets":12,"sheets":["Cover","SMART Goal","Post-Test","Teacher 1","Teacher 2","Teacher 3","Teacher 4","Teacher 5","Teacher 6","Teacher 7","Teacher 8","Graphs"],"not_rendered":{"charts":7,"images":0,"macros":1,"external_links":0,"defined_names":1,"comments":0,"pivot_tables":0},"unopened":[],"bounds":{"document_bytes":16777216,"sheet_cells":100000,"rows_first":2000,"rows_last":500,"rows_between":2000,"halvings":0,"cell_chars":16384,"cell_head_chars":4096},"cells_cut":0,"cells_raw":0,"read":"whole","date_system":"1900"}

{"sheet":"Cover","index":0,"n_rows":17,"n_cols":7,"rows_kept":17,"cut":false,"hidden":false,"merged":[[3,3,6,6]]}
[]
[null,null,null,"Fill in the YELLOW BOXES ONLY!"]
["Content Information"]
["Grade",6,null,"Directions: Complete the cover page. Then, add your data to the appropriate teacher tab. As a team, review your SMART Goal, and begin examining student work for trends. After you've administered your CSA, update your data, and review the Post-Test tab."]
["Subject","English"]
["Standard","W.3"]
["Learning Target","I can plan for writing"]
[]
["Team",null,null,"Assessment Plan",null,null,"Meeting Date"]
["Teacher 1","Burke",null,"Assessment","Date",null,"Oct. 14"]
["Teacher 2","Glasford",null,"CFA 1","Oct. 13"]
["Teacher 3","Rau",null,"CFA 2 (optional)","Oct. 20"]
["Teacher 4","Waltman",null,"CFA 3 (optional)","Oct. 27"]
["Teacher 5",null,null,"CSA","Oct. 31"]
["Teacher 6",null,null,"*Format dates like this:  Oct. 15"]
["Teacher 7"]
["Teacher 8"]

{"sheet":"SMART Goal","index":1,"n_rows":59,"n_cols":9,"rows_kept":59,"cut":false,"hidden":false,"merged":[[59,1,67,9],[32,1,33,8],[36,1,37,10],[39,1,42,9],[45,1,48,9],[51,1,56,9]]}
[]
[]
[null,"Teacher","# students","# Prof. +","CFA % Prof. +","# Basic","% Basic","# BB","% BB"]
[null,{"$f":"IF(Cover!B10=0,\"\",Cover!B10)","v":"Burke"},{"$f":"COUNTA('Teacher 1'!B5:B187)","v":11},{"$f":"COUNTIF('Teacher 1'!C5:C187,\">2.99\")","v":4},{"$f":"(D4/C4)","v":0.36363636363636365},{"$f":" COUNTIF('Teacher 1'!C5:C187,\"2\")","v":5},{"$f":"(F4/C4)","v":0.45454545454545453},{"$f":"COUNTIF('Teacher 1'!C5:C187,\"<1.01\")","v":2},{"$f":"(H4/C4)","v":0.18181818181818182}]
[null,{"$f":"IF(Cover!B11=0,\"\",Cover!B11)","v":"Glasford"},{"$f":"COUNTA('Teacher 2'!B5:B187)","v":11},{"$f":"COUNTIF('Teacher 2'!C5:C187,\">2.99\")","v":1},{"$f":"(D5/C5)","v":9.0909090909090912E-2},{"$f":" COUNTIF('Teacher 2'!C5:C187,\"2\")","v":8},{"$f":"(F5/C5)","v":0.72727272727272729},{"$f":"COUNTIF('Teacher 2'!C5:C187,\"<1.01\")","v":2},0.18181818181818182]
[null,{"$f":"IF(Cover!B12=0,\"\",Cover!B12)","v":"Rau"},{"$f":"COUNTA('Teacher 3'!B5:B187)","v":2},{"$f":"COUNTIF('Teacher 3'!C5:C187,\">2.99\")","v":0},0,{"$f":" COUNTIF('Teacher 3'!C5:C187,\"2\")","v":0},0,{"$f":"COUNTIF('Teacher 3'!C5:C187,\"<1.01\")","v":2},1]
[null,{"$f":"IF(Cover!B13=0,\"\",Cover!B13)","v":"Waltman"},{"$f":"COUNTA('Teacher 4'!B5:B187)","v":2},{"$f":"COUNTIF('Teacher 4'!C5:C187,\">2.99\")","v":0},0,{"$f":" COUNTIF('Teacher 4'!C5:C187,\"2\")","v":2},1,{"$f":"COUNTIF('Teacher 4'!C5:C187,\"<1.01\")","v":0},0]
[null,{"$f":"IF(Cover!B14=0,\"\",Cover!B14)","v":""},{"$f":"COUNTA('Teacher 5'!B5:B187)","v":0},{"$f":"COUNTIF('Teacher 5'!C5:C187,\">2.99\")","v":0},{"$error":"#DIV/0!"},{"$f":" COUNTIF('Teacher 5'!C9:C191,\"2\")","v":0},{"$error":"#DIV/0!"},{"$f":"COUNTIF('Teacher 5'!C5:C187,\"<1.01\")","v":0},{"$error":"#DIV/0!"}]
[null,{"$f":"IF(Cover!B15=0,\"\",Cover!B15)","v":""},{"$f":"COUNTA('Teacher 6'!B5:B187)","v":0},{"$f":"COUNTIF('Teacher 6'!C5:C187,\">2.99\")","v":0},{"$error":"#DIV/0!"},{"$f":" COUNTIF('Teacher 6'!C10:C192,\"2\")","v":0},{"$error":"#DIV/0!"},{"$f":"COUNTIF('Teacher 6'!C5:C187,\"<1.01\")","v":0},{"$error":"#DIV/0!"}]
[null,{"$f":"IF(Cover!B16=0,\"\",Cover!B16)","v":""},{"$f":"COUNTA('Teacher 7'!B5:B187)","v":0},{"$f":"COUNTIF('Teacher 7'!C5:C187,\">2.99\")","v":0},{"$error":"#DIV/0!"},{"$f":" COUNTIF('Teacher 7'!C11:C193,\"2\")","v":0},{"$error":"#DIV/0!"},{"$f":"COUNTIF('Teacher 7'!C5:C187,\"<1.01\")","v":0},{"$error":"#DIV/0!"}]
[null,{"$f":"IF(Cover!B17=0,\"\",Cover!B17)","v":""},{"$f":"COUNTA('Teacher 8'!B5:B187)","v":0},{"$f":"COUNTIF('Teacher 8'!C5:C187,\">2.99\")","v":0},{"$error":"#DIV/0!"},{"$f":" COUNTIF('Teacher 8'!C12:C194,\"2\")","v":0},{"$error":"#DIV/0!"},{"$f":"COUNTIF('Teacher 8'!C5:C187,\"<1.01\")","v":0},{"$error":"#DIV/0!"}]
[null,"TEAM",{"$f":"SUM(C4:C11)","v":26},{"$f":"SUM(D4:D11)","v":5},{"$f":"(D12/C12)","v":0.19230769230769232},{"$f":"SUM(F4:F11)","v":15},{"$f":"(F12/C12)","v":0.57692307692307687},{"$f":"SUM(H4:H11)","v":6},{"$f":"(H12/C12)","v":0.23076923076923078}]
[null,null,null,null,{"$f":"ROUND(MID(E12*100,1,5),0)&\"%\"","v":"19%"}]
[]
[]
[]
[]
[]
[]
[]
[]
[]
[]
[null,"Grade",{"$f":"Cover!B4","v":6},null,"Standard",{"$f":"Cover!B6","v":"W.3"}]
[null,"Subject",{"$f":"Cover!B5","v":"English"},null,"Learning Target",{"$f":"Cover!B7","v":"I can plan for writing"}]
[]
[null,"CSA Date",{"$f":"Cover!E14","v":"Oct. 31"},null,"Fill in the YELLOW BOXES ONLY!"]
[]
[null,"# Advanced, Proficient, Basic",{"$f":"SUM(D12,F12)","v":20},null,"# Below Basic",{"$f":"H12","v":6},null,"% Expected Proficiency",{"$f":"(C29/C12)","v":0.76923076923076927}]
[null,null,null,null,null,null,null,null,{"$f":"ROUND(MID(I29*100,1,5),0)&\"%\"","v":"77%"}]
[]
[null,"SMART Goal Statement"]
[null,{"$f":"\"The percentage of grade \"&C24&\" \"&C25&\" students proficient or higher in \"&F24&\": \"&F25&\", will increase from \"&E13&\" to \"&I30&\" as measured by CSA on \"&C27&\".\"","v":"The percentage of grade 6 English students proficient or higher in W.3: I can plan for writing, will increase from 19% to 77% as measured by CSA on Oct. 31."}]
[]
[]
[null,"Next step: "]
[null,"Examine student work. What strengths do you notice? Are there patterns of misconceptions with your Basic and Below Basic students? What strategies might you use to reteach?"]
[]
[null,"Notes"]
[]
[]
[]
[]
[]
[null,"Student Strengths"]
[]
[]
[]
[]
[]
[null,"Misconceptions"]
[]
[]
[]
[]
[]
[]
[]
[null,"Differentiation Strategies"]

{"sheet":"Post-Test","index":2,"n_rows":14,"n_cols":10,"rows_kept":14,"cut":false,"hidden":false,"merged":[[13,2,13,3],[13,6,13,7]]}
[]
[]
[null,"Teacher","# students","Avg. Growth","# Prof. +","CSA % Prof. +","# Basic","% Basic","# BB","% BB"]
[null,{"$f":"IF(Cover!B10=0,\"\",Cover!B10)","v":"Burke"},{"$f":"COUNTA('Teacher 1'!B5:B187)","v":11},{"$f":"'Teacher 1'!G3","v":1.1111111111111112},{"$f":"COUNTIF('Teacher 1'!F5:F187,\">2.99\")","v":9},{"$f":"(E4/C4)","v":0.81818181818181823},{"$f":"COUNTIF('Teacher 1'!F5:F187,\"2\")","v":2},{"$f":"(G4/C4)","v":0.18181818181818182},{"$f":"COUNTIF('Teacher 1'!F5:F187,\"<1.01\")","v":0},{"$f":"(I4/C4)","v":0}]
[null,{"$f":"IF(Cover!B11=0,\"\",Cover!B11)","v":"Glasford"},{"$f":"COUNTA('Teacher 2'!B5:B187)","v":11},{"$f":"'Teacher 2'!G3","v":1.25},{"$f":"COUNTIF('Teacher 2'!F5:F187,\">2.99\")","v":8},0.72727272727272729,{"$f":"COUNTIF('Teacher 2'!F5:F187,\"2\")","v":3},0.27272727272727271,{"$f":"COUNTIF('Teacher 2'!F5:F187,\"<1.01\")","v":0},0]
[null,{"$f":"IF(Cover!B12=0,\"\",Cover!B12)","v":"Rau"},{"$f":"COUNTA('Teacher 3'!B5:B187)","v":2},{"$f":"'Teacher 3'!G3","v":1.5},{"$f":"COUNTIF('Teacher 3'!F5:F187,\">2.99\")","v":1},0.5,{"$f":"COUNTIF('Teacher 3'!F5:F187,\"2\")","v":1},0.5,{"$f":"COUNTIF('Teacher 3'!F5:F187,\"<1.01\")","v":0},0]
[null,{"$f":"IF(Cover!B13=0,\"\",Cover!B13)","v":"Waltman"},{"$f":"COUNTA('Teacher 4'!B5:B187)","v":2},{"$f":"'Teacher 4'!G3","v":1},{"$f":"COUNTIF('Teacher 4'!F5:F187,\">2.99\")","v":2},1,{"$f":"COUNTIF('Teacher 4'!F5:F187,\"2\")","v":0},0,{"$f":"COUNTIF('Teacher 4'!F5:F187,\"<1.01\")","v":0},0]
[null,{"$f":"IF(Cover!B14=0,\"\",Cover!B14)","v":""},{"$f":"COUNTA('Teacher 5'!B5:B187)","v":0},{"$f":"'Teacher 5'!G3","v":{"$error":"#DIV/0!"}},{"$f":"COUNTIF('Teacher 5'!F5:F187,\">2.99\")","v":0},{"$error":"#DIV/0!"},{"$f":"COUNTIF('Teacher 5'!F5:F187,\"2\")","v":0},{"$error":"#DIV/0!"},{"$f":"COUNTIF('Teacher 5'!F5:F187,\"<1.01\")","v":0},{"$error":"#DIV/0!"}]
[null,{"$f":"IF(Cover!B15=0,\"\",Cover!B15)","v":""},{"$f":"COUNTA('Teacher 6'!B5:B187)","v":0},{"$f":"'Teacher 6'!G3","v":{"$error":"#DIV/0!"}},{"$f":"COUNTIF('Teacher 6'!F5:F187,\">2.99\")","v":0},{"$error":"#DIV/0!"},{"$f":"COUNTIF('Teacher 6'!F5:F187,\"2\")","v":0},{"$error":"#DIV/0!"},{"$f":"COUNTIF('Teacher 6'!F5:F187,\"<1.01\")","v":0},{"$error":"#DIV/0!"}]
[null,{"$f":"IF(Cover!B16=0,\"\",Cover!B16)","v":""},{"$f":"COUNTA('Teacher 7'!B5:B187)","v":0},{"$f":"'Teacher 7'!G3","v":{"$error":"#DIV/0!"}},{"$f":"COUNTIF('Teacher 7'!F5:F187,\">2.99\")","v":0},{"$error":"#DIV/0!"},{"$f":"COUNTIF('Teacher 7'!F5:F187,\"2\")","v":0},{"$error":"#DIV/0!"},{"$f":"COUNTIF('Teacher 7'!F5:F187,\"<1.01\")","v":0},{"$error":"#DIV/0!"}]
[null,{"$f":"IF(Cover!B17=0,\"\",Cover!B17)","v":""},{"$f":"COUNTA('Teacher 8'!B5:B187)","v":0},{"$f":"'Teacher 8'!G3","v":{"$error":"#DIV/0!"}},{"$f":"COUNTIF('Teacher 8'!F5:F187,\">2.99\")","v":0},{"$error":"#DIV/0!"},{"$f":"COUNTIF('Teacher 8'!F5:F187,\"2\")","v":0},{"$error":"#DIV/0!"},{"$f":"COUNTIF('Teacher 8'!F5:F187,\"<1.01\")","v":0},{"$error":"#DIV/0!"}]
[null,"TEAM",{"$f":"SUM(C4:C11)","v":26},{"$f":"AVERAGEIF(D4:D11,\"<>#DIV/0!\")","v":1.2152777777777777},{"$f":"SUM(E4:E11)","v":20},{"$f":"(E12/C12)","v":0.76923076923076927},{"$f":"SUM(G4:G11)","v":6},{"$f":"(G12/C12)","v":0.23076923076923078},{"$f":"SUM(I4:I11)","v":0},{"$f":"(I12/C12)","v":0}]
[]
[null,null,"SMART Goal",null,{"$f":"'SMART Goal'!I29","v":0.76923076923076927},null,"Goal met?",null,{"$f":"IF(F12<E14,\"NO\",\"YES\")","v":"YES"}]

{"sheet":"Teacher 1","index":3,"n_rows":187,"n_cols":10,"rows_kept":187,"cut":false,"hidden":false,"merged":[[6,8,7,10]]}
["Teacher",{"$f":"Cover!B10","v":"Burke"},"Grade",{"$f":"Cover!B4","v":6},"Subject",{"$f":"Cover!B5","v":"English"},"Standard",{"$f":"Cover!B6","v":"W.3"},"Learning Target",{"$f":"Cover!B7","v":"I can plan for writing"}]
[]
[null,"Class Average",{"$f":"AVERAGE(C5:C187)","v":2.1818181818181817},{"$f":"AVERAGE(D5:D187)","v":2.2857142857142856},{"$f":"AVERAGE(E5:E187)","v":2.6},{"$f":"AVERAGE(F5:F187)","v":3.0909090909090908},{"$f":"AVERAGE(G5:G187)","v":1.1111111111111112}]
["Pd.","Student Names","CFA 1","CFA 2","CFA 3","CSA","Growth"]
[null,"A",2,3,null,4,{"$f":"IF((F5-C5)=0, \"\",(F5-C5))","v":2},null,"Fill in the YELLOW BOXES ONLY!"]
[null,"B",2,2,3,3,{"$f":"IF((F6-C6)=0, \"\",(F6-C6))","v":1}]
[null,"C",2,2,3,3,1,null,"Scores should be entered using the following scale:"]
[null,"D",3,null,null,4,1]
[null,"E",3,null,null,3,""]
[null,"F",2,3,null,3,1,null,"4 - Advanced"]
[null,"G",1,2,2,2,1,null,"3 - Proficient"]
[null,"H",1,2,2,2,1,null,"2 - Basic/Approaching"]
[null,"I",2,2,3,3,1,null,"1 - Below Basic/Emerging"]
[null,"J",3,null,null,3,""]
[null,"K",3,null,null,4,1]
[null,null,null,null,null,null,""]
[null,null,null,null,null,null,""]
[null,null,null,null,null,null,""]
[null,null,null,null,null,null,""]
[null,null,null,null,null,null,""]
[null,null,null,null,null,null,""]
[null,null,null,null,null,null,""]
[null,null,null,null,null,null,""]
[null,null,null,null,null,null,""]
[null,null,null,null,null,null,""]
[null,null,null,null,null,null,""]
[null,null,null,null,null,null,""]
[null,null,null,null,null,null,""]
[null,null,null,null,null,null,""]
[null,null,null,null,null,null,""]
[null,null,null,null,null,null,""]
[null,null,null,null,null,null,""]
[null,null,null,null,null,null,""]
[null,null,null,null,null,null,""]
[null,null,null,null,null,null,""]
[null,null,null,null,null,null,""]
[null,null,null,null,null,null,""]
[null,null,null,null,null,null,""]
[null,null,null,null,null,null,""]
[null,null,null,null,null,null,""]
[null,null,null,null,null,null,""]
[null,null,null,null,null,null,""]
[null,null,null,null,null,null,""]
[null,null,null,null,null,null,""]
[null,null,null,null,null,null,""]
[null,null,null,null,null,null,""]
[null,null,null,null,null,null,""]
[null,null,null,null,null,null,""]
[null,null,null,null,null,null,""]
[null,null,null,null,null,null,""]
[null,null,null,null,null,null,""]
[null,null,null,null,null,null,""]
[null,null,null,null,null,null,""]
[null,null,null,null,null,null,""]
[null,null,null,null,null,null,""]
[null,null,null,null,null,null,""]
[null,null,null,null,null,null,""]
[null,null,null,null,null,null,""]
[null,null,null,null,null,null,""]
[null,null,null,null,null,null,""]
[null,null,null,null,null,null,""]
[null,null,null,null,null,null,""]
[null,null,null,null,null,null,""]
[null,null,null,null,null,null,""]
[null,null,null,null,null,null,""]
[null,null,null,null,null,null,""]
[null,null,null,null,null,null,""]
[null,null,null,null,null,null,""]
[null,null,null,null,null,null,""]
[null,null,null,null,null,null,{"$f":"IF((F70-C70)=0, \"\",(F70-C70))","v":""}]
[null,null,null,null,null,null,""]
[null,null,null,null,null,null,""]
[null,null,null,null,null,null,""]
[null,null,null,null,null,null,""]
[null,null,null,null,null,null,""]
[null,null,null,null,null,null,""]
[null,null,null,null,null,null,""]
[null,null,null,null,null,null,""]
[null,null,null,null,null,null,""]
[null,null,null,null,null,null,""]
[null,null,null,null,null,null,""]
[null,null,null,null,null,null,""]
[null,null,null,null,null,null,""]
[null,null,null,null,null,null,""]
[null,null,null,null,null,null,""]
[null,null,null,null,null,null,""]
[null,null,null,null,null,null,""]
[null,null,null,null,null,null,""]
[null,null,null,null,null,null,""]
[null,null,null,null,null,null,""]
[null,null,null,null,null,null,""]
[null,null,null,null,null,null,""]
[null,null,null,null,null,null,""]
[null,null,null,null,null,null,""]
[null,null,null,null,null,null,""]
[null,null,null,null,null,null,""]
[null,null,null,null,null,null,""]
[null,null,null,null,null,null,""]
[null,null,null,null,null,null,""]
[null,null,null,null,null,null,""]
[null,null,null,null,null,null,""]
[null,null,null,null,null,null,""]
[null,null,null,null,null,null,""]
[null,null,null,null,null,null,""]
[null,null,null,null,null,null,""]
[null,null,null,null,null,null,""]
[null,null,null,null,null,null,""]
[null,null,null,null,null,null,""]
[null,null,null,null,null,null,""]
[null,null,null,null,null,null,""]
[null,null,null,null,null,null,""]
[null,null,null,null,null,null,""]
[null,null,null,null,null,null,""]
[null,null,null,null,null,null,""]
[null,null,null,null,null,null,""]
[null,null,null,null,null,null,""]
[null,null,null,null,null,null,""]
[null,null,null,null,null,null,""]
[null,null,null,null,null,null,""]
[null,null,null,null,null,null,""]
[null,null,null,null,null,null,""]
[null,null,null,null,null,null,""]
[null,null,null,null,null,null,""]
[null,null,null,null,null,null,""]
[null,null,null,null,null,null,""]
[null,null,null,null,null,null,""]
[null,null,null,null,null,null,""]
[null,null,null,null,null,null,""]
[null,null,null,null,null,null,""]
[null,null,null,null,null,null,""]
[null,null,null,null,null,null,""]
[null,null,null,null,null,null,""]
[null,null,null,null,null,null,""]
[null,null,null,null,null,null,{"$f":"IF((F134-C134)=0, \"\",(F134-C134))","v":""}]
[null,null,null,null,null,null,""]
[null,null,null,null,null,null,""]
[null,null,null,null,null,null,""]
[null,null,null,null,null,null,""]
[null,null,null,null,null,null,""]
[null,null,null,null,null,null,""]
[null,null,null,null,null,null,""]
[null,null,null,null,null,null,""]
[null,null,null,null,null,null,""]
[null,null,null,null,null,null,""]
[null,null,null,null,null,null,""]
[null,null,null,null,null,null,""]
[null,null,null,null,null,null,""]
[null,null,null,null,null,null,""]
[null,null,null,null,null,null,""]
[null,null,null,null,null,null,""]
[null,null,null,null,null,null,""]
[null,null,null,null,null,null,""]
[null,null,null,null,null,null,""]
[null,null,null,null,null,null,""]
[null,null,null,null,null,null,""]
[null,null,null,null,null,null,""]
[null,null,null,null,null,null,""]
[null,null,null,null,null,null,""]
[null,null,null,null,null,null,""]
[null,null,null,null,null,null,""]
[null,null,null,null,null,null,""]
[null,null,null,null,null,null,""]
[null,null,null,null,null,null,""]
[null,null,null,null,null,null,""]
[null,null,null,null,null,null,""]
[null,null,null,null,null,null,""]
[null,null,null,null,null,null,""]
[null,null,null,null,null,null,""]
[null,null,null,null,null,null,""]
[null,null,null,null,null,null,""]
[null,null,null,null,null,null,""]
[null,null,null,null,null,null,""]
[null,null,null,null,null,null,""]
[null,null,null,null,null,null,""]
[null,null,null,null,null,null,""]
[null,null,null,null,null,null,""]
[null,null,null,null,null,null,""]
[null,null,null,null,null,null,""]
[null,null,null,null,null,null,""]
[null,null,null,null,null,null,""]
[null,null,null,null,null,null,""]
[null,null,null,null,null,null,""]
[null,null,null,null,null,null,""]
[null,null,null,null,null,null,""]
[null,null,null,null,null,null,""]
[null,null,null,null,null,null,""]
[null,null,null,null,null,null,""]

{"sheet":"Teacher 2","index":4,"n_rows":187,"n_cols":10,"rows_kept":187,"cut":false,"hidden":false,"merged":[[6,8,7,10]]}
["Teacher",{"$f":"Cover!B11","v":"Glasford"},"Grade",{"$f":"Cover!B4","v":6},"Subject",{"$f":"Cover!B5","v":"English"},"Standard",{"$f":"Cover!B6","v":"W.3"},"Learning Target",{"$f":"Cover!B7","v":"I can plan for writing"}]
[]
[null,"Class Average",{"$f":"AVERAGE(C5:C187)","v":1.9090909090909092},{"$f":"AVERAGE(D5:D187)","v":2.4},{"$f":"AVERAGE(E5:E187)","v":2.4},{"$f":"AVERAGE(F5:F187)","v":2.8181818181818183},{"$f":"AVERAGE(G5:G187)","v":1.25}]
["Pd.","Student Names","CFA 1","CFA 2","CFA 3","CSA","Growth"]
[null,"L",2,2,3,3,{"$f":"IF((F5-C5)=0, \"\",(F5-C5))","v":1},null,"Fill in the YELLOW BOXES ONLY!"]
[null,"M",2,3,null,3,{"$f":"IF((F6-C6)=0, \"\",(F6-C6))","v":1}]
[null,"N",2,3,null,4,2,null,"Scores should be entered using the following scale:"]
[null,"O",2,2,2,2,""]
[null,"P",3,null,null,3,""]
[null,"Q",2,2,3,3,1,null,"4 - Advanced"]
[null,"R",2,3,null,3,1,null,"3 - Proficient"]
[null,"S",2,3,null,2,"",null,"2 - Basic/Approaching"]
[null,"T",2,3,null,3,1,null,"1 - Below Basic/Emerging"]
[null,"U",1,2,2,2,1]
[null,"V",1,1,2,3,2]
[null,null,null,null,null,null,""]
[null,null,null,null,null,null,""]
[null,null,null,null,null,null,""]
[null,null,null,null,null,null,""]
[null,null,null,null,null,null,""]
[null,null,null,null,null,null,""]
[null,null,null,null,null,null,""]
[null,null,null,null,null,null,""]
[null,null,null,null,null,null,""]
[null,null,null,null,null,null,""]
[null,null,null,null,null,null,""]
[null,null,null,null,null,null,""]
[null,null,null,null,null,null,""]
[null,null,null,null,null,null,""]
[null,null,null,null,null,null,""]
[null,null,null,null,null,null,""]
[null,null,null,null,null,null,""]
[null,null,null,null,null,null,""]
[null,null,null,null,null,null,""]
[null,null,null,null,null,null,""]
[null,null,null,null,null,null,""]
[null,null,null,null,null,null,""]
[null,null,null,null,null,null,""]
[null,null,null,null,null,null,""]
[null,null,null,null,null,null,""]
[null,null,null,null,null,null,""]
[null,null,null,null,null,null,""]
[null,null,null,null,null,null,""]
[null,null,null,null,null,null,""]
[null,null,null,null,null,null,""]
[null,null,null,null,null,null,""]
[null,null,null,null,null,null,""]
[null,null,null,null,null,null,""]
[null,null,null,null,null,null,""]
[null,null,null,null,null,null,""]
[null,null,null,null,null,null,""]
[null,null,null,null,null,null,""]
[null,null,null,null,null,null,""]
[null,null,null,null,null,null,""]
[null,null,null,null,null,null,""]
[null,null,null,null,null,null,""]
[null,null,null,null,null,null,""]
[null,null,null,null,null,null,""]
[null,null,null,null,null,null,""]
[null,null,null,null,null,null,""]
[null,null,null,null,null,null,""]
[null,null,null,null,null,null,""]
[null,null,null,null,null,null,""]
[null,null,null,null,null,null,""]
[null,null,null,null,null,null,""]
[null,null,null,null,null,null,""]
[null,null,null,null,null,null,""]
[null,null,null,null,null,null,""]
[null,null,null,null,null,null,""]
[null,null,null,null,null,null,{"$f":"IF((F70-C70)=0, \"\",(F70-C70))","v":""}]
[null,null,null,null,null,null,""]
[null,null,null,null,null,null,""]
[null,null,null,null,null,null,""]
[null,null,null,null,null,null,""]
[null,null,null,null,null,null,""]
[null,null,null,null,null,null,""]
[null,null,null,null,null,null,""]
[null,null,null,null,null,null,""]
[null,null,null,null,null,null,""]
[null,null,null,null,null,null,""]
[null,null,null,null,null,null,""]
[null,null,null,null,null,null,""]
[null,null,null,null,null,null,""]
[null,null,null,null,null,null,""]
[null,null,null,null,null,null,""]
[null,null,null,null,null,null,""]
[null,null,null,null,null,null,""]
[null,null,null,null,null,null,""]
[null,null,null,null,null,null,""]
[null,null,null,null,null,null,""]
[null,null,null,null,null,null,""]
[null,null,null,null,null,null,""]
[null,null,null,null,null,null,""]
[null,null,null,null,null,null,""]
[null,null,null,null,null,null,""]
[null,null,null,null,null,null,""]
[null,null,null,null,null,null,""]
[null,null,null,null,null,null,""]
[null,null,null,null,null,null,""]
[null,null,null,null,null,null,""]
[null,null,null,null,null,null,""]
[null,null,null,null,null,null,""]
[null,null,null,null,null,null,""]
[null,null,null,null,null,null,""]
[null,null,null,null,null,null,""]
[null,null,null,null,null,null,""]
[null,null,null,null,null,null,""]
[null,null,null,null,null,null,""]
[null,null,null,null,null,null,""]
[null,null,null,null,null,null,""]
[null,null,null,null,null,null,""]
[null,null,null,null,null,null,""]
[null,null,null,null,null,null,""]
[null,null,null,null,null,null,""]
[null,null,null,null,null,null,""]
[null,null,null,null,null,null,""]
[null,null,null,null,null,null,""]
[null,null,null,null,null,null,""]
[null,null,null,null,null,null,""]
[null,null,null,null,null,null,""]
[null,null,null,null,null,null,""]
[null,null,null,null,null,null,""]
[null,null,null,null,null,null,""]
[null,null,null,null,null,null,""]
[null,null,null,null,null,null,""]
[null,null,null,null,null,null,""]
[null,null,null,null,null,null,""]
[null,null,null,null,null,null,""]
[null,null,null,null,null,null,""]
[null,null,null,null,null,null,""]
[null,null,null,null,null,null,""]
[null,null,null,null,null,null,""]
[null,null,null,null,null,null,""]
[null,null,null,null,null,null,{"$f":"IF((F134-C134)=0, \"\",(F134-C134))","v":""}]
[null,null,null,null,null,null,""]
[null,null,null,null,null,null,""]
[null,null,null,null,null,null,""]
[null,null,null,null,null,null,""]
[null,null,null,null,null,null,""]
[null,null,null,null,null,null,""]
[null,null,null,null,null,null,""]
[null,null,null,null,null,null,""]
[null,null,null,null,null,null,""]
[null,null,null,null,null,null,""]
[null,null,null,null,null,null,""]
[null,null,null,null,null,null,""]
[null,null,null,null,null,null,""]
[null,null,null,null,null,null,""]
[null,null,null,null,null,null,""]
[null,null,null,null,null,null,""]
[null,null,null,null,null,null,""]
[null,null,null,null,null,null,""]
[null,null,null,null,null,null,""]
[null,null,null,null,null,null,""]
[null,null,null,null,null,null,""]
[null,null,null,null,null,null,""]
[null,null,null,null,null,null,""]
[null,null,null,null,null,null,""]
[null,null,null,null,null,null,""]
[null,null,null,null,null,null,""]
[null,null,null,null,null,null,""]
[null,null,null,null,null,null,""]
[null,null,null,null,null,null,""]
[null,null,null,null,null,null,""]
[null,null,null,null,null,null,""]
[null,null,null,null,null,null,""]
[null,null,null,null,null,null,""]
[null,null,null,null,null,null,""]
[null,null,null,null,null,null,""]
[null,null,null,null,null,null,""]
[null,null,null,null,null,null,""]
[null,null,null,null,null,null,""]
[null,null,null,null,null,null,""]
[null,null,null,null,null,null,""]
[null,null,null,null,null,null,""]
[null,null,null,null,null,null,""]
[null,null,null,null,null,null,""]
[null,null,null,null,null,null,""]
[null,null,null,null,null,null,""]
[null,null,null,null,null,null,""]
[null,null,null,null,null,null,""]
[null,null,null,null,null,null,""]
[null,null,null,null,null,null,""]
[null,null,null,null,null,null,""]
[null,null,null,null,null,null,""]
[null,null,null,null,null,null,""]
[null,null,null,null,null,null,""]

{"sheet":"Teacher 3","index":5,"n_rows":187,"n_cols":10,"rows_kept":187,"cut":false,"hidden":false,"merged":[[6,8,7,10]]}
["Teacher",{"$f":"Cover!B12","v":"Rau"},"Grade",{"$f":"Cover!B4","v":6},"Subject",{"$f":"Cover!B5","v":"English"},"Standard",{"$f":"Cover!B6","v":"W.3"},"Learning Target",{"$f":"Cover!B7","v":"I can plan for writing"}]
[]
[null,"Class Average",{"$f":"AVERAGE(C5:C187)","v":1},{"$f":"AVERAGE(D5:D187)","v":1},{"$f":"AVERAGE(E5:E187)","v":2},{"$f":"AVERAGE(F5:F187)","v":2.5},{"$f":"AVERAGE(G5:G187)","v":1.5}]
["Pd.","Student Names","CFA 1","CFA 2","CFA 3","CSA","Growth"]
[null,"W",1,1,2,3,{"$f":"IF((F5-C5)=0, \"\",(F5-C5))","v":2},null,"Fill in the YELLOW BOXES ONLY!"]
[null,"X",1,1,2,2,{"$f":"IF((F6-C6)=0, \"\",(F6-C6))","v":1}]
[null,null,null,null,null,null,"",null,"Scores should be entered using the following scale:"]
[null,null,null,null,null,null,""]
[null,null,null,null,null,null,""]
[null,null,null,null,null,null,"",null,"4 - Advanced"]
[null,null,null,null,null,null,"",null,"3 - Proficient"]
[null,null,null,null,null,null,"",null,"2 - Basic/Approaching"]
[null,null,null,null,null,null,"",null,"1 - Below Basic/Emerging"]
[null,null,null,null,null,null,""]
[null,null,null,null,null,null,""]
[null,null,null,null,null,null,""]
[null,null,null,null,null,null,""]
[null,null,null,null,null,null,""]
[null,null,null,null,null,null,""]
[null,null,null,null,null,null,""]
[null,null,null,null,null,null,""]
[null,null,null,null,null,null,""]
[null,null,null,null,null,null,""]
[null,null,null,null,null,null,""]
[null,null,null,null,null,null,""]
[null,null,null,null,null,null,""]
[null,null,null,null,null,null,""]
[null,null,null,null,null,null,""]
[null,null,null,null,null,null,""]
[null,null,null,null,null,null,""]
[null,null,null,null,null,null,""]
[null,null,null,null,null,null,""]
[null,null,null,null,null,null,""]
[null,null,null,null,null,null,""]
[null,null,null,null,null,null,""]
[null,null,null,null,null,null,""]
[null,null,null,null,null,null,""]
[null,null,null,null,null,null,""]
[null,null,null,null,null,null,""]
[null,null,null,null,null,null,""]
[null,null,null,null,null,null,""]
[null,null,null,null,null,null,""]
[null,null,null,null,null,null,""]
[null,null,null,null,null,null,""]
[null,null,null,null,null,null,""]
[null,null,null,null,null,null,""]
[null,null,null,null,null,null,""]
[null,null,null,null,null,null,""]
[null,null,null,null,null,null,""]
[null,null,null,null,null,null,""]
[null,null,null,null,null,null,""]
[null,null,null,null,null,null,""]
[null,null,null,null,null,null,""]
[null,null,null,null,null,null,""]
[null,null,null,null,null,null,""]
[null,null,null,null,null,null,""]
[null,null,null,null,null,null,""]
[null,null,null,null,null,null,""]
[null,null,null,null,null,null,""]
[null,null,null,null,null,null,""]
[null,null,null,null,null,null,""]
[null,null,null,null,null,null,""]
[null,null,null,null,null,null,""]
[null,null,null,null,null,null,""]
[null,null,null,null,null,null,""]
[null,null,null,null,null,null,""]
[null,null,null,null,null,null,""]
[null,null,null,null,null,null,""]
[null,null,null,null,null,null,""]
[null,null,null,null,null,null,{"$f":"IF((F70-C70)=0, \"\",(F70-C70))","v":""}]
[null,null,null,null,null,null,""]
[null,null,null,null,null,null,""]
[null,null,null,null,null,null,""]
[null,null,null,null,null,null,""]
[null,null,null,null,null,null,""]
[null,null,null,null,null,null,""]
[null,null,null,null,null,null,""]
[null,null,null,null,null,null,""]
[null,null,null,null,null,null,""]
[null,null,null,null,null,null,""]
[null,null,null,null,null,null,""]
[null,null,null,null,null,null,""]
[null,null,null,null,null,null,""]
[null,null,null,null,null,null,""]
[null,null,null,null,null,null,""]
[null,null,null,null,null,null,""]
[null,null,null,null,null,null,""]
[null,null,null,null,null,null,""]
[null,null,null,null,null,null,""]
[null,null,null,null,null,null,""]
[null,null,null,null,null,null,""]
[null,null,null,null,null,null,""]
[null,null,null,null,null,null,""]
[null,null,null,null,null,null,""]
[null,null,null,null,null,null,""]
[null,null,null,null,null,null,""]
[null,null,null,null,null,null,""]
[null,null,null,null,null,null,""]
[null,null,null,null,null,null,""]
[null,null,null,null,null,null,""]
[null,null,null,null,null,null,""]
[null,null,null,null,null,null,""]
[null,null,null,null,null,null,""]
[null,null,null,null,null,null,""]
[null,null,null,null,null,null,""]
[null,null,null,null,null,null,""]
[null,null,null,null,null,null,""]
[null,null,null,null,null,null,""]
[null,null,null,null,null,null,""]
[null,null,null,null,null,null,""]
[null,null,null,null,null,null,""]
[null,null,null,null,null,null,""]
[null,null,null,null,null,null,""]
[null,null,null,null,null,null,""]
[null,null,null,null,null,null,""]
[null,null,null,null,null,null,""]
[null,null,null,null,null,null,""]
[null,null,null,null,null,null,""]
[null,null,null,null,null,null,""]
[null,null,null,null,null,null,""]
[null,null,null,null,null,null,""]
[null,null,null,null,null,null,""]
[null,null,null,null,null,null,""]
[null,null,null,null,null,null,""]
[null,null,null,null,null,null,""]
[null,null,null,null,null,null,""]
[null,null,null,null,null,null,""]
[null,null,null,null,null,null,""]
[null,null,null,null,null,null,""]
[null,null,null,null,null,null,""]
[null,null,null,null,null,null,""]
[null,null,null,null,null,null,""]
[null,null,null,null,null,null,""]
[null,null,null,null,null,null,{"$f":"IF((F134-C134)=0, \"\",(F134-C134))","v":""}]
[null,null,null,null,null,null,""]
[null,null,null,null,null,null,""]
[null,null,null,null,null,null,""]
[null,null,null,null,null,null,""]
[null,null,null,null,null,null,""]
[null,null,null,null,null,null,""]
[null,null,null,null,null,null,""]
[null,null,null,null,null,null,""]
[null,null,null,null,null,null,""]
[null,null,null,null,null,null,""]
[null,null,null,null,null,null,""]
[null,null,null,null,null,null,""]
[null,null,null,null,null,null,""]
[null,null,null,null,null,null,""]
[null,null,null,null,null,null,""]
[null,null,null,null,null,null,""]
[null,null,null,null,null,null,""]
[null,null,null,null,null,null,""]
[null,null,null,null,null,null,""]
[null,null,null,null,null,null,""]
[null,null,null,null,null,null,""]
[null,null,null,null,null,null,""]
[null,null,null,null,null,null,""]
[null,null,null,null,null,null,""]
[null,null,null,null,null,null,""]
[null,null,null,null,null,null,""]
[null,null,null,null,null,null,""]
[null,null,null,null,null,null,""]
[null,null,null,null,null,null,""]
[null,null,null,null,null,null,""]
[null,null,null,null,null,null,""]
[null,null,null,null,null,null,""]
[null,null,null,null,null,null,""]
[null,null,null,null,null,null,""]
[null,null,null,null,null,null,""]
[null,null,null,null,null,null,""]
[null,null,null,null,null,null,""]
[null,null,null,null,null,null,""]
[null,null,null,null,null,null,""]
[null,null,null,null,null,null,""]
[null,null,null,null,null,null,""]
[null,null,null,null,null,null,""]
[null,null,null,null,null,null,""]
[null,null,null,null,null,null,""]
[null,null,null,null,null,null,""]
[null,null,null,null,null,null,""]
[null,null,null,null,null,null,""]
[null,null,null,null,null,null,""]
[null,null,null,null,null,null,""]
[null,null,null,null,null,null,""]
[null,null,null,null,null,null,""]
[null,null,null,null,null,null,""]
[null,null,null,null,null,null,""]

{"sheet":"Teacher 4","index":6,"n_rows":187,"n_cols":10,"rows_kept":187,"cut":false,"hidden":false,"merged":[[6,8,7,10]]}
["Teacher",{"$f":"Cover!B13","v":"Waltman"},"Grade",{"$f":"Cover!B4","v":6},"Subject",{"$f":"Cover!B5","v":"English"},"Standard",{"$f":"Cover!B6","v":"W.3"},"Learning Target",{"$f":"Cover!B7","v":"I can plan for writing"}]
[]
[null,"Class Average",{"$f":"AVERAGE(C5:C187)","v":2},{"$f":"AVERAGE(D5:D187)","v":2},{"$f":"AVERAGE(E5:E187)","v":2.5},{"$f":"AVERAGE(F5:F187)","v":3},{"$f":"AVERAGE(G5:G187)","v":1}]
["Pd.","Student Names","CFA 1","CFA 2","CFA 3","CSA","Growth"]
[null,"Y",2,2,3,3,{"$f":"IF((F5-C5)=0, \"\",(F5-C5))","v":1},null,"Fill in the YELLOW BOXES ONLY!"]
[null,"Z",2,2,2,3,{"$f":"IF((F6-C6)=0, \"\",(F6-C6))","v":1}]
[null,null,null,null,null,null,"",null,"Scores should be entered using the following scale:"]
[null,null,null,null,null,null,""]
[null,null,null,null,null,null,""]
[null,null,null,null,null,null,"",null,"4 - Advanced"]
[null,null,null,null,null,null,"",null,"3 - Proficient"]
[null,null,null,null,null,null,"",null,"2 - Basic/Approaching"]
[null,null,null,null,null,null,"",null,"1 - Below Basic/Emerging"]
[null,null,null,null,null,null,""]
[null,null,null,null,null,null,""]
[null,null,null,null,null,null,""]
[null,null,null,null,null,null,""]
[null,null,null,null,null,null,""]
[null,null,null,null,null,null,""]
[null,null,null,null,null,null,""]
[null,null,null,null,null,null,""]
[null,null,null,null,null,null,""]
[null,null,null,null,null,null,""]
[null,null,null,null,null,null,""]
[null,null,null,null,null,null,""]
[null,null,null,null,null,null,""]
[null,null,null,null,null,null,""]
[null,null,null,null,null,null,""]
[null,null,null,null,null,null,""]
[null,null,null,null,null,null,""]
[null,null,null,null,null,null,""]
[null,null,null,null,null,null,""]
[null,null,null,null,null,null,""]
[null,null,null,null,null,null,""]
[null,null,null,null,null,null,""]
[null,null,null,null,null,null,""]
[null,null,null,null,null,null,""]
[null,null,null,null,null,null,""]
[null,null,null,null,null,null,""]
[null,null,null,null,null,null,""]
[null,null,null,null,null,null,""]
[null,null,null,null,null,null,""]
[null,null,null,null,null,null,""]
[null,null,null,null,null,null,""]
[null,null,null,null,null,null,""]
[null,null,null,null,null,null,""]
[null,null,null,null,null,null,""]
[null,null,null,null,null,null,""]
[null,null,null,null,null,null,""]
[null,null,null,null,null,null,""]
[null,null,null,null,null,null,""]
[null,null,null,null,null,null,""]
[null,null,null,null,null,null,""]
[null,null,null,null,null,null,""]
[null,null,null,null,null,null,""]
[null,null,null,null,null,null,""]
[null,null,null,null,null,null,""]
[null,null,null,null,null,null,""]
[null,null,null,null,null,null,""]
[null,null,null,null,null,null,""]
[null,null,null,null,null,null,""]
[null,null,null,null,null,null,""]
[null,null,null,null,null,null,""]
[null,null,null,null,null,null,""]
[null,null,null,null,null,null,""]
[null,null,null,null,null,null,""]
[null,null,null,null,null,null,""]
[null,null,null,null,null,null,""]
[null,null,null,null,null,null,""]
[null,null,null,null,null,null,{"$f":"IF((F70-C70)=0, \"\",(F70-C70))","v":""}]
[null,null,null,null,null,null,""]
[null,null,null,null,null,null,""]
[null,null,null,null,null,null,""]
[null,null,null,null,null,null,""]
[null,null,null,null,null,null,""]
[null,null,null,null,null,null,""]
[null,null,null,null,null,null,""]
[null,null,null,null,null,null,""]
[null,null,null,null,null,null,""]
[null,null,null,null,null,null,""]
[null,null,null,null,null,null,""]
[null,null,null,null,null,null,""]
[null,null,null,null,null,null,""]
[null,null,null,null,null,null,""]
[null,null,null,null,null,null,""]
[null,null,null,null,null,null,""]
[null,null,null,null,null,null,""]
[null,null,null,null,null,null,""]
[null,null,null,null,null,null,""]
[null,null,null,null,null,null,""]
[null,null,null,null,null,null,""]
[null,null,null,null,null,null,""]
[null,null,null,null,null,null,""]
[null,null,null,null,null,null,""]
[null,null,null,null,null,null,""]
[null,null,null,null,null,null,""]
[null,null,null,null,null,null,""]
[null,null,null,null,null,null,""]
[null,null,null,null,null,null,""]
[null,null,null,null,null,null,""]
[null,null,null,null,null,null,""]
[null,null,null,null,null,null,""]
[null,null,null,null,null,null,""]
[null,null,null,null,null,null,""]
[null,null,null,null,null,null,""]
[null,null,null,null,null,null,""]
[null,null,null,null,null,null,""]
[null,null,null,null,null,null,""]
[null,null,null,null,null,null,""]
[null,null,null,null,null,null,""]
[null,null,null,null,null,null,""]
[null,null,null,null,null,null,""]
[null,null,null,null,null,null,""]
[null,null,null,null,null,null,""]
[null,null,null,null,null,null,""]
[null,null,null,null,null,null,""]
[null,null,null,null,null,null,""]
[null,null,null,null,null,null,""]
[null,null,null,null,null,null,""]
[null,null,null,null,null,null,""]
[null,null,null,null,null,null,""]
[null,null,null,null,null,null,""]
[null,null,null,null,null,null,""]
[null,null,null,null,null,null,""]
[null,null,null,null,null,null,""]
[null,null,null,null,null,null,""]
[null,null,null,null,null,null,""]
[null,null,null,null,null,null,""]
[null,null,null,null,null,null,""]
[null,null,null,null,null,null,""]
[null,null,null,null,null,null,""]
[null,null,null,null,null,null,""]
[null,null,null,null,null,null,""]
[null,null,null,null,null,null,{"$f":"IF((F134-C134)=0, \"\",(F134-C134))","v":""}]
[null,null,null,null,null,null,""]
[null,null,null,null,null,null,""]
[null,null,null,null,null,null,""]
[null,null,null,null,null,null,""]
[null,null,null,null,null,null,""]
[null,null,null,null,null,null,""]
[null,null,null,null,null,null,""]
[null,null,null,null,null,null,""]
[null,null,null,null,null,null,""]
[null,null,null,null,null,null,""]
[null,null,null,null,null,null,""]
[null,null,null,null,null,null,""]
[null,null,null,null,null,null,""]
[null,null,null,null,null,null,""]
[null,null,null,null,null,null,""]
[null,null,null,null,null,null,""]
[null,null,null,null,null,null,""]
[null,null,null,null,null,null,""]
[null,null,null,null,null,null,""]
[null,null,null,null,null,null,""]
[null,null,null,null,null,null,""]
[null,null,null,null,null,null,""]
[null,null,null,null,null,null,""]
[null,null,null,null,null,null,""]
[null,null,null,null,null,null,""]
[null,null,null,null,null,null,""]
[null,null,null,null,null,null,""]
[null,null,null,null,null,null,""]
[null,null,null,null,null,null,""]
[null,null,null,null,null,null,""]
[null,null,null,null,null,null,""]
[null,null,null,null,null,null,""]
[null,null,null,null,null,null,""]
[null,null,null,null,null,null,""]
[null,null,null,null,null,null,""]
[null,null,null,null,null,null,""]
[null,null,null,null,null,null,""]
[null,null,null,null,null,null,""]
[null,null,null,null,null,null,""]
[null,null,null,null,null,null,""]
[null,null,null,null,null,null,""]
[null,null,null,null,null,null,""]
[null,null,null,null,null,null,""]
[null,null,null,null,null,null,""]
[null,null,null,null,null,null,""]
[null,null,null,null,null,null,""]
[null,null,null,null,null,null,""]
[null,null,null,null,null,null,""]
[null,null,null,null,null,null,""]
[null,null,null,null,null,null,""]
[null,null,null,null,null,null,""]
[null,null,null,null,null,null,""]
[null,null,null,null,null,null,""]

{"sheet":"Teacher 5","index":7,"n_rows":187,"n_cols":10,"rows_kept":187,"cut":false,"hidden":false,"merged":[[6,8,7,10]]}
["Teacher",{"$f":"Cover!B14","v":0},"Grade",{"$f":"Cover!B4","v":6},"Subject",{"$f":"Cover!B5","v":"English"},"Standard",{"$f":"Cover!B6","v":"W.3"},"Learning Target",{"$f":"Cover!B7","v":"I can plan for writing"}]
[]
[null,"Class Average",{"$f":"AVERAGE(C5:C187)","v":{"$error":"#DIV/0!"}},{"$f":"AVERAGE(D5:D187)","v":{"$error":"#DIV/0!"}},{"$f":"AVERAGE(E5:E187)","v":{"$error":"#DIV/0!"}},{"$f":"AVERAGE(F5:F187)","v":{"$error":"#DIV/0!"}},{"$f":"AVERAGE(G5:G187)","v":{"$error":"#DIV/0!"}}]
["Pd.","Student Names","CFA 1","CFA 2","CFA 3","CSA","Growth"]
[null,null,null,null,null,null,{"$f":"IF((F5-C5)=0, \"\",(F5-C5))","v":""},null,"Fill in the YELLOW BOXES ONLY!"]
[null,null,null,null,null,null,{"$f":"IF((F6-C6)=0, \"\",(F6-C6))","v":""}]
[null,null,null,null,null,null,"",null,"Scores should be entered using the following scale:"]
[null,null,null,null,null,null,""]
[null,null,null,null,null,null,""]
[null,null,null,null,null,null,"",null,"4 - Advanced"]
[null,null,null,null,null,null,"",null,"3 - Proficient"]
[null,null,null,null,null,null,"",null,"2 - Basic/Approaching"]
[null,null,null,null,null,null,"",null,"1 - Below Basic/Emerging"]
[null,null,null,null,null,null,""]
[null,null,null,null,null,null,""]
[null,null,null,null,null,null,""]
[null,null,null,null,null,null,""]
[null,null,null,null,null,null,""]
[null,null,null,null,null,null,""]
[null,null,null,null,null,null,""]
[null,null,null,null,null,null,""]
[null,null,null,null,null,null,""]
[null,null,null,null,null,null,""]
[null,null,null,null,null,null,""]
[null,null,null,null,null,null,""]
[null,null,null,null,null,null,""]
[null,null,null,null,null,null,""]
[null,null,null,null,null,null,""]
[null,null,null,null,null,null,""]
[null,null,null,null,null,null,""]
[null,null,null,null,null,null,""]
[null,null,null,null,null,null,""]
[null,null,null,null,null,null,""]
[null,null,null,null,null,null,""]
[null,null,null,null,null,null,""]
[null,null,null,null,null,null,""]
[null,null,null,null,null,null,""]
[null,null,null,null,null,null,""]
[null,null,null,null,null,null,""]
[null,null,null,null,null,null,""]
[null,null,null,null,null,null,""]
[null,null,null,null,null,null,""]
[null,null,null,null,null,null,""]
[null,null,null,null,null,null,""]
[null,null,null,null,null,null,""]
[null,null,null,null,null,null,""]
[null,null,null,null,null,null,""]
[null,null,null,null,null,null,""]
[null,null,null,null,null,null,""]
[null,null,null,null,null,null,""]
[null,null,null,null,null,null,""]
[null,null,null,null,null,null,""]
[null,null,null,null,null,null,""]
[null,null,null,null,null,null,""]
[null,null,null,null,null,null,""]
[null,null,null,null,null,null,""]
[null,null,null,null,null,null,""]
[null,null,null,null,null,null,""]
[null,null,null,null,null,null,""]
[null,null,null,null,null,null,""]
[null,null,null,null,null,null,""]
[null,null,null,null,null,null,""]
[null,null,null,null,null,null,""]
[null,null,null,null,null,null,""]
[null,null,null,null,null,null,""]
[null,null,null,null,null,null,""]
[null,null,null,null,null,null,""]
[null,null,null,null,null,null,""]
[null,null,null,null,null,null,""]
[null,null,null,null,null,null,{"$f":"IF((F70-C70)=0, \"\",(F70-C70))","v":""}]
[null,null,null,null,null,null,""]
[null,null,null,null,null,null,""]
[null,null,null,null,null,null,""]
[null,null,null,null,null,null,""]
[null,null,null,null,null,null,""]
[null,null,null,null,null,null,""]
[null,null,null,null,null,null,""]
[null,null,null,null,null,null,""]
[null,null,null,null,null,null,""]
[null,null,null,null,null,null,""]
[null,null,null,null,null,null,""]
[null,null,null,null,null,null,""]
[null,null,null,null,null,null,""]
[null,null,null,null,null,null,""]
[null,null,null,null,null,null,""]
[null,null,null,null,null,null,""]
[null,null,null,null,null,null,""]
[null,null,null,null,null,null,""]
[null,null,null,null,null,null,""]
[null,null,null,null,null,null,""]
[null,null,null,null,null,null,""]
[null,null,null,null,null,null,""]
[null,null,null,null,null,null,""]
[null,null,null,null,null,null,""]
[null,null,null,null,null,null,""]
[null,null,null,null,null,null,""]
[null,null,null,null,null,null,""]
[null,null,null,null,null,null,""]
[null,null,null,null,null,null,""]
[null,null,null,null,null,null,""]
[null,null,null,null,null,null,""]
[null,null,null,null,null,null,""]
[null,null,null,null,null,null,""]
[null,null,null,null,null,null,""]
[null,null,null,null,null,null,""]
[null,null,null,null,null,null,""]
[null,null,null,null,null,null,""]
[null,null,null,null,null,null,""]
[null,null,null,null,null,null,""]
[null,null,null,null,null,null,""]
[null,null,null,null,null,null,""]
[null,null,null,null,null,null,""]
[null,null,null,null,null,null,""]
[null,null,null,null,null,null,""]
[null,null,null,null,null,null,""]
[null,null,null,null,null,null,""]
[null,null,null,null,null,null,""]
[null,null,null,null,null,null,""]
[null,null,null,null,null,null,""]
[null,null,null,null,null,null,""]
[null,null,null,null,null,null,""]
[null,null,null,null,null,null,""]
[null,null,null,null,null,null,""]
[null,null,null,null,null,null,""]
[null,null,null,null,null,null,""]
[null,null,null,null,null,null,""]
[null,null,null,null,null,null,""]
[null,null,null,null,null,null,""]
[null,null,null,null,null,null,""]
[null,null,null,null,null,null,""]
[null,null,null,null,null,null,""]
[null,null,null,null,null,null,""]
[null,null,null,null,null,null,""]
[null,null,null,null,null,null,{"$f":"IF((F134-C134)=0, \"\",(F134-C134))","v":""}]
[null,null,null,null,null,null,""]
[null,null,null,null,null,null,""]
[null,null,null,null,null,null,""]
[null,null,null,null,null,null,""]
[null,null,null,null,null,null,""]
[null,null,null,null,null,null,""]
[null,null,null,null,null,null,""]
[null,null,null,null,null,null,""]
[null,null,null,null,null,null,""]
[null,null,null,null,null,null,""]
[null,null,null,null,null,null,""]
[null,null,null,null,null,null,""]
[null,null,null,null,null,null,""]
[null,null,null,null,null,null,""]
[null,null,null,null,null,null,""]
[null,null,null,null,null,null,""]
[null,null,null,null,null,null,""]
[null,null,null,null,null,null,""]
[null,null,null,null,null,null,""]
[null,null,null,null,null,null,""]
[null,null,null,null,null,null,""]
[null,null,null,null,null,null,""]
[null,null,null,null,null,null,""]
[null,null,null,null,null,null,""]
[null,null,null,null,null,null,""]
[null,null,null,null,null,null,""]
[null,null,null,null,null,null,""]
[null,null,null,null,null,null,""]
[null,null,null,null,null,null,""]
[null,null,null,null,null,null,""]
[null,null,null,null,null,null,""]
[null,null,null,null,null,null,""]
[null,null,null,null,null,null,""]
[null,null,null,null,null,null,""]
[null,null,null,null,null,null,""]
[null,null,null,null,null,null,""]
[null,null,null,null,null,null,""]
[null,null,null,null,null,null,""]
[null,null,null,null,null,null,""]
[null,null,null,null,null,null,""]
[null,null,null,null,null,null,""]
[null,null,null,null,null,null,""]
[null,null,null,null,null,null,""]
[null,null,null,null,null,null,""]
[null,null,null,null,null,null,""]
[null,null,null,null,null,null,""]
[null,null,null,null,null,null,""]
[null,null,null,null,null,null,""]
[null,null,null,null,null,null,""]
[null,null,null,null,null,null,""]
[null,null,null,null,null,null,""]
[null,null,null,null,null,null,""]
[null,null,null,null,null,null,""]

{"sheet":"Teacher 6","index":8,"n_rows":187,"n_cols":10,"rows_kept":187,"cut":false,"hidden":false,"merged":[[6,8,7,10]]}
["Teacher",{"$f":"Cover!B15","v":0},"Grade",{"$f":"Cover!B4","v":6},"Subject",{"$f":"Cover!B5","v":"English"},"Standard",{"$f":"Cover!B6","v":"W.3"},"Learning Target",{"$f":"Cover!B7","v":"I can plan for writing"}]
[]
[null,"Class Average",{"$f":"AVERAGE(C5:C187)","v":{"$error":"#DIV/0!"}},{"$f":"AVERAGE(D5:D187)","v":{"$error":"#DIV/0!"}},{"$f":"AVERAGE(E5:E187)","v":{"$error":"#DIV/0!"}},{"$f":"AVERAGE(F5:F187)","v":{"$error":"#DIV/0!"}},{"$f":"AVERAGE(G5:G187)","v":{"$error":"#DIV/0!"}}]
["Pd.","Student Names","CFA 1","CFA 2","CFA 3","CSA","Growth"]
[null,null,null,null,null,null,{"$f":"IF((F5-C5)=0, \"\",(F5-C5))","v":""},null,"Fill in the YELLOW BOXES ONLY!"]
[null,null,null,null,null,null,{"$f":"IF((F6-C6)=0, \"\",(F6-C6))","v":""}]
[null,null,null,null,null,null,"",null,"Scores should be entered using the following scale:"]
[null,null,null,null,null,null,""]
[null,null,null,null,null,null,""]
[null,null,null,null,null,null,"",null,"4 - Advanced"]
[null,null,null,null,null,null,"",null,"3 - Proficient"]
[null,null,null,null,null,null,"",null,"2 - Basic/Approaching"]
[null,null,null,null,null,null,"",null,"1 - Below Basic/Emerging"]
[null,null,null,null,null,null,""]
[null,null,null,null,null,null,""]
[null,null,null,null,null,null,""]
[null,null,null,null,null,null,""]
[null,null,null,null,null,null,""]
[null,null,null,null,null,null,""]
[null,null,null,null,null,null,""]
[null,null,null,null,null,null,""]
[null,null,null,null,null,null,""]
[null,null,null,null,null,null,""]
[null,null,null,null,null,null,""]
[null,null,null,null,null,null,""]
[null,null,null,null,null,null,""]
[null,null,null,null,null,null,""]
[null,null,null,null,null,null,""]
[null,null,null,null,null,null,""]
[null,null,null,null,null,null,""]
[null,null,null,null,null,null,""]
[null,null,null,null,null,null,""]
[null,null,null,null,null,null,""]
[null,null,null,null,null,null,""]
[null,null,null,null,null,null,""]
[null,null,null,null,null,null,""]
[null,null,null,null,null,null,""]
[null,null,null,null,null,null,""]
[null,null,null,null,null,null,""]
[null,null,null,null,null,null,""]
[null,null,null,null,null,null,""]
[null,null,null,null,null,null,""]
[null,null,null,null,null,null,""]
[null,null,null,null,null,null,""]
[null,null,null,null,null,null,""]
[null,null,null,null,null,null,""]
[null,null,null,null,null,null,""]
[null,null,null,null,null,null,""]
[null,null,null,null,null,null,""]
[null,null,null,null,null,null,""]
[null,null,null,null,null,null,""]
[null,null,null,null,null,null,""]
[null,null,null,null,null,null,""]
[null,null,null,null,null,null,""]
[null,null,null,null,null,null,""]
[null,null,null,null,null,null,""]
[null,null,null,null,null,null,""]
[null,null,null,null,null,null,""]
[null,null,null,null,null,null,""]
[null,null,null,null,null,null,""]
[null,null,null,null,null,null,""]
[null,null,null,null,null,null,""]
[null,null,null,null,null,null,""]
[null,null,null,null,null,null,""]
[null,null,null,null,null,null,""]
[null,null,null,null,null,null,""]
[null,null,null,null,null,null,""]
[null,null,null,null,null,null,""]
[null,null,null,null,null,null,""]
[null,null,null,null,null,null,{"$f":"IF((F70-C70)=0, \"\",(F70-C70))","v":""}]
[null,null,null,null,null,null,""]
[null,null,null,null,null,null,""]
[null,null,null,null,null,null,""]
[null,null,null,null,null,null,""]
[null,null,null,null,null,null,""]
[null,null,null,null,null,null,""]
[null,null,null,null,null,null,""]
[null,null,null,null,null,null,""]
[null,null,null,null,null,null,""]
[null,null,null,null,null,null,""]
[null,null,null,null,null,null,""]
[null,null,null,null,null,null,""]
[null,null,null,null,null,null,""]
[null,null,null,null,null,null,""]
[null,null,null,null,null,null,""]
[null,null,null,null,null,null,""]
[null,null,null,null,null,null,""]
[null,null,null,null,null,null,""]
[null,null,null,null,null,null,""]
[null,null,null,null,null,null,""]
[null,null,null,null,null,null,""]
[null,null,null,null,null,null,""]
[null,null,null,null,null,null,""]
[null,null,null,null,null,null,""]
[null,null,null,null,null,null,""]
[null,null,null,null,null,null,""]
[null,null,null,null,null,null,""]
[null,null,null,null,null,null,""]
[null,null,null,null,null,null,""]
[null,null,null,null,null,null,""]
[null,null,null,null,null,null,""]
[null,null,null,null,null,null,""]
[null,null,null,null,null,null,""]
[null,null,null,null,null,null,""]
[null,null,null,null,null,null,""]
[null,null,null,null,null,null,""]
[null,null,null,null,null,null,""]
[null,null,null,null,null,null,""]
[null,null,null,null,null,null,""]
[null,null,null,null,null,null,""]
[null,null,null,null,null,null,""]
[null,null,null,null,null,null,""]
[null,null,null,null,null,null,""]
[null,null,null,null,null,null,""]
[null,null,null,null,null,null,""]
[null,null,null,null,null,null,""]
[null,null,null,null,null,null,""]
[null,null,null,null,null,null,""]
[null,null,null,null,null,null,""]
[null,null,null,null,null,null,""]
[null,null,null,null,null,null,""]
[null,null,null,null,null,null,""]
[null,null,null,null,null,null,""]
[null,null,null,null,null,null,""]
[null,null,null,null,null,null,""]
[null,null,null,null,null,null,""]
[null,null,null,null,null,null,""]
[null,null,null,null,null,null,""]
[null,null,null,null,null,null,""]
[null,null,null,null,null,null,""]
[null,null,null,null,null,null,""]
[null,null,null,null,null,null,""]
[null,null,null,null,null,null,""]
[null,null,null,null,null,null,{"$f":"IF((F134-C134)=0, \"\",(F134-C134))","v":""}]
[null,null,null,null,null,null,""]
[null,null,null,null,null,null,""]
[null,null,null,null,null,null,""]
[null,null,null,null,null,null,""]
[null,null,null,null,null,null,""]
[null,null,null,null,null,null,""]
[null,null,null,null,null,null,""]
[null,null,null,null,null,null,""]
[null,null,null,null,null,null,""]
[null,null,null,null,null,null,""]
[null,null,null,null,null,null,""]
[null,null,null,null,null,null,""]
[null,null,null,null,null,null,""]
[null,null,null,null,null,null,""]
[null,null,null,null,null,null,""]
[null,null,null,null,null,null,""]
[null,null,null,null,null,null,""]
[null,null,null,null,null,null,""]
[null,null,null,null,null,null,""]
[null,null,null,null,null,null,""]
[null,null,null,null,null,null,""]
[null,null,null,null,null,null,""]
[null,null,null,null,null,null,""]
[null,null,null,null,null,null,""]
[null,null,null,null,null,null,""]
[null,null,null,null,null,null,""]
[null,null,null,null,null,null,""]
[null,null,null,null,null,null,""]
[null,null,null,null,null,null,""]
[null,null,null,null,null,null,""]
[null,null,null,null,null,null,""]
[null,null,null,null,null,null,""]
[null,null,null,null,null,null,""]
[null,null,null,null,null,null,""]
[null,null,null,null,null,null,""]
[null,null,null,null,null,null,""]
[null,null,null,null,null,null,""]
[null,null,null,null,null,null,""]
[null,null,null,null,null,null,""]
[null,null,null,null,null,null,""]
[null,null,null,null,null,null,""]
[null,null,null,null,null,null,""]
[null,null,null,null,null,null,""]
[null,null,null,null,null,null,""]
[null,null,null,null,null,null,""]
[null,null,null,null,null,null,""]
[null,null,null,null,null,null,""]
[null,null,null,null,null,null,""]
[null,null,null,null,null,null,""]
[null,null,null,null,null,null,""]
[null,null,null,null,null,null,""]
[null,null,null,null,null,null,""]
[null,null,null,null,null,null,""]

{"sheet":"Teacher 7","index":9,"n_rows":187,"n_cols":10,"rows_kept":187,"cut":false,"hidden":false,"merged":[[6,8,7,10]]}
["Teacher",{"$f":"Cover!B16","v":0},"Grade",{"$f":"Cover!B4","v":6},"Subject",{"$f":"Cover!B5","v":"English"},"Standard",{"$f":"Cover!B6","v":"W.3"},"Learning Target",{"$f":"Cover!B7","v":"I can plan for writing"}]
[]
[null,"Class Average",{"$f":"AVERAGE(C5:C187)","v":{"$error":"#DIV/0!"}},{"$f":"AVERAGE(D5:D187)","v":{"$error":"#DIV/0!"}},{"$f":"AVERAGE(E5:E187)","v":{"$error":"#DIV/0!"}},{"$f":"AVERAGE(F5:F187)","v":{"$error":"#DIV/0!"}},{"$f":"AVERAGE(G5:G187)","v":{"$error":"#DIV/0!"}}]
["Pd.","Student Names","CFA 1","CFA 2","CFA 3","CSA","Growth"]
[null,null,null,null,null,null,{"$f":"IF((F5-C5)=0, \"\",(F5-C5))","v":""},null,"Fill in the YELLOW BOXES ONLY!"]
[null,null,null,null,null,null,{"$f":"IF((F6-C6)=0, \"\",(F6-C6))","v":""}]
[null,null,null,null,null,null,"",null,"Scores should be entered using the following scale:"]
[null,null,null,null,null,null,""]
[null,null,null,null,null,null,""]
[null,null,null,null,null,null,"",null,"4 - Advanced"]
[null,null,null,null,null,null,"",null,"3 - Proficient"]
[null,null,null,null,null,null,"",null,"2 - Basic/Approaching"]
[null,null,null,null,null,null,"",null,"1 - Below Basic/Emerging"]
[null,null,null,null,null,null,""]
[null,null,null,null,null,null,""]
[null,null,null,null,null,null,""]
[null,null,null,null,null,null,""]
[null,null,null,null,null,null,""]
[null,null,null,null,null,null,""]
[null,null,null,null,null,null,""]
[null,null,null,null,null,null,""]
[null,null,null,null,null,null,""]
[null,null,null,null,null,null,""]
[null,null,null,null,null,null,""]
[null,null,null,null,null,null,""]
[null,null,null,null,null,null,""]
[null,null,null,null,null,null,""]
[null,null,null,null,null,null,""]
[null,null,null,null,null,null,""]
[null,null,null,null,null,null,""]
[null,null,null,null,null,null,""]
[null,null,null,null,null,null,""]
[null,null,null,null,null,null,""]
[null,null,null,null,null,null,""]
[null,null,null,null,null,null,""]
[null,null,null,null,null,null,""]
[null,null,null,null,null,null,""]
[null,null,null,null,null,null,""]
[null,null,null,null,null,null,""]
[null,null,null,null,null,null,""]
[null,null,null,null,null,null,""]
[null,null,null,null,null,null,""]
[null,null,null,null,null,null,""]
[null,null,null,null,null,null,""]
[null,null,null,null,null,null,""]
[null,null,null,null,null,null,""]
[null,null,null,null,null,null,""]
[null,null,null,null,null,null,""]
[null,null,null,null,null,null,""]
[null,null,null,null,null,null,""]
[null,null,null,null,null,null,""]
[null,null,null,null,null,null,""]
[null,null,null,null,null,null,""]
[null,null,null,null,null,null,""]
[null,null,null,null,null,null,""]
[null,null,null,null,null,null,""]
[null,null,null,null,null,null,""]
[null,null,null,null,null,null,""]
[null,null,null,null,null,null,""]
[null,null,null,null,null,null,""]
[null,null,null,null,null,null,""]
[null,null,null,null,null,null,""]
[null,null,null,null,null,null,""]
[null,null,null,null,null,null,""]
[null,null,null,null,null,null,""]
[null,null,null,null,null,null,""]
[null,null,null,null,null,null,""]
[null,null,null,null,null,null,""]
[null,null,null,null,null,null,""]
[null,null,null,null,null,null,{"$f":"IF((F70-C70)=0, \"\",(F70-C70))","v":""}]
[null,null,null,null,null,null,""]
[null,null,null,null,null,null,""]
[null,null,null,null,null,null,""]
[null,null,null,null,null,null,""]
[null,null,null,null,null,null,""]
[null,null,null,null,null,null,""]
[null,null,null,null,null,null,""]
[null,null,null,null,null,null,""]
[null,null,null,null,null,null,""]
[null,null,null,null,null,null,""]
[null,null,null,null,null,null,""]
[null,null,null,null,null,null,""]
[null,null,null,null,null,null,""]
[null,null,null,null,null,null,""]
[null,null,null,null,null,null,""]
[null,null,null,null,null,null,""]
[null,null,null,null,null,null,""]
[null,null,null,null,null,null,""]
[null,null,null,null,null,null,""]
[null,null,null,null,null,null,""]
[null,null,null,null,null,null,""]
[null,null,null,null,null,null,""]
[null,null,null,null,null,null,""]
[null,null,null,null,null,null,""]
[null,null,null,null,null,null,""]
[null,null,null,null,null,null,""]
[null,null,null,null,null,null,""]
[null,null,null,null,null,null,""]
[null,null,null,null,null,null,""]
[null,null,null,null,null,null,""]
[null,null,null,null,null,null,""]
[null,null,null,null,null,null,""]
[null,null,null,null,null,null,""]
[null,null,null,null,null,null,""]
[null,null,null,null,null,null,""]
[null,null,null,null,null,null,""]
[null,null,null,null,null,null,""]
[null,null,null,null,null,null,""]
[null,null,null,null,null,null,""]
[null,null,null,null,null,null,""]
[null,null,null,null,null,null,""]
[null,null,null,null,null,null,""]
[null,null,null,null,null,null,""]
[null,null,null,null,null,null,""]
[null,null,null,null,null,null,""]
[null,null,null,null,null,null,""]
[null,null,null,null,null,null,""]
[null,null,null,null,null,null,""]
[null,null,null,null,null,null,""]
[null,null,null,null,null,null,""]
[null,null,null,null,null,null,""]
[null,null,null,null,null,null,""]
[null,null,null,null,null,null,""]
[null,null,null,null,null,null,""]
[null,null,null,null,null,null,""]
[null,null,null,null,null,null,""]
[null,null,null,null,null,null,""]
[null,null,null,null,null,null,""]
[null,null,null,null,null,null,""]
[null,null,null,null,null,null,""]
[null,null,null,null,null,null,""]
[null,null,null,null,null,null,""]
[null,null,null,null,null,null,""]
[null,null,null,null,null,null,{"$f":"IF((F134-C134)=0, \"\",(F134-C134))","v":""}]
[null,null,null,null,null,null,""]
[null,null,null,null,null,null,""]
[null,null,null,null,null,null,""]
[null,null,null,null,null,null,""]
[null,null,null,null,null,null,""]
[null,null,null,null,null,null,""]
[null,null,null,null,null,null,""]
[null,null,null,null,null,null,""]
[null,null,null,null,null,null,""]
[null,null,null,null,null,null,""]
[null,null,null,null,null,null,""]
[null,null,null,null,null,null,""]
[null,null,null,null,null,null,""]
[null,null,null,null,null,null,""]
[null,null,null,null,null,null,""]
[null,null,null,null,null,null,""]
[null,null,null,null,null,null,""]
[null,null,null,null,null,null,""]
[null,null,null,null,null,null,""]
[null,null,null,null,null,null,""]
[null,null,null,null,null,null,""]
[null,null,null,null,null,null,""]
[null,null,null,null,null,null,""]
[null,null,null,null,null,null,""]
[null,null,null,null,null,null,""]
[null,null,null,null,null,null,""]
[null,null,null,null,null,null,""]
[null,null,null,null,null,null,""]
[null,null,null,null,null,null,""]
[null,null,null,null,null,null,""]
[null,null,null,null,null,null,""]
[null,null,null,null,null,null,""]
[null,null,null,null,null,null,""]
[null,null,null,null,null,null,""]
[null,null,null,null,null,null,""]
[null,null,null,null,null,null,""]
[null,null,null,null,null,null,""]
[null,null,null,null,null,null,""]
[null,null,null,null,null,null,""]
[null,null,null,null,null,null,""]
[null,null,null,null,null,null,""]
[null,null,null,null,null,null,""]
[null,null,null,null,null,null,""]
[null,null,null,null,null,null,""]
[null,null,null,null,null,null,""]
[null,null,null,null,null,null,""]
[null,null,null,null,null,null,""]
[null,null,null,null,null,null,""]
[null,null,null,null,null,null,""]
[null,null,null,null,null,null,""]
[null,null,null,null,null,null,""]
[null,null,null,null,null,null,""]
[null,null,null,null,null,null,""]

{"sheet":"Teacher 8","index":10,"n_rows":187,"n_cols":10,"rows_kept":187,"cut":false,"hidden":false,"merged":[[6,8,7,10]]}
["Teacher",{"$f":"Cover!B17","v":0},"Grade",{"$f":"Cover!B4","v":6},"Subject",{"$f":"Cover!B5","v":"English"},"Standard",{"$f":"Cover!B6","v":"W.3"},"Learning Target",{"$f":"Cover!B7","v":"I can plan for writing"}]
[]
[null,"Class Average",{"$f":"AVERAGE(C5:C187)","v":{"$error":"#DIV/0!"}},{"$f":"AVERAGE(D5:D187)","v":{"$error":"#DIV/0!"}},{"$f":"AVERAGE(E5:E187)","v":{"$error":"#DIV/0!"}},{"$f":"AVERAGE(F5:F187)","v":{"$error":"#DIV/0!"}},{"$f":"AVERAGE(G5:G187)","v":{"$error":"#DIV/0!"}}]
["Pd.","Student Names","CFA 1","CFA 2","CFA 3","CSA","Growth"]
[null,null,null,null,null,null,{"$f":"IF((F5-C5)=0, \"\",(F5-C5))","v":""},null,"Fill in the YELLOW BOXES ONLY!"]
[null,null,null,null,null,null,{"$f":"IF((F6-C6)=0, \"\",(F6-C6))","v":""}]
[null,null,null,null,null,null,"",null,"Scores should be entered using the following scale:"]
[null,null,null,null,null,null,""]
[null,null,null,null,null,null,""]
[null,null,null,null,null,null,"",null,"4 - Advanced"]
[null,null,null,null,null,null,"",null,"3 - Proficient"]
[null,null,null,null,null,null,"",null,"2 - Basic/Approaching"]
[null,null,null,null,null,null,"",null,"1 - Below Basic/Emerging"]
[null,null,null,null,null,null,""]
[null,null,null,null,null,null,""]
[null,null,null,null,null,null,""]
[null,null,null,null,null,null,""]
[null,null,null,null,null,null,""]
[null,null,null,null,null,null,""]
[null,null,null,null,null,null,""]
[null,null,null,null,null,null,""]
[null,null,null,null,null,null,""]
[null,null,null,null,null,null,""]
[null,null,null,null,null,null,""]
[null,null,null,null,null,null,""]
[null,null,null,null,null,null,""]
[null,null,null,null,null,null,""]
[null,null,null,null,null,null,""]
[null,null,null,null,null,null,""]
[null,null,null,null,null,null,""]
[null,null,null,null,null,null,""]
[null,null,null,null,null,null,""]
[null,null,null,null,null,null,""]
[null,null,null,null,null,null,""]
[null,null,null,null,null,null,""]
[null,null,null,null,null,null,""]
[null,null,null,null,null,null,""]
[null,null,null,null,null,null,""]
[null,null,null,null,null,null,""]
[null,null,null,null,null,null,""]
[null,null,null,null,null,null,""]
[null,null,null,null,null,null,""]
[null,null,null,null,null,null,""]
[null,null,null,null,null,null,""]
[null,null,null,null,null,null,""]
[null,null,null,null,null,null,""]
[null,null,null,null,null,null,""]
[null,null,null,null,null,null,""]
[null,null,null,null,null,null,""]
[null,null,null,null,null,null,""]
[null,null,null,null,null,null,""]
[null,null,null,null,null,null,""]
[null,null,null,null,null,null,""]
[null,null,null,null,null,null,""]
[null,null,null,null,null,null,""]
[null,null,null,null,null,null,""]
[null,null,null,null,null,null,""]
[null,null,null,null,null,null,""]
[null,null,null,null,null,null,""]
[null,null,null,null,null,null,""]
[null,null,null,null,null,null,""]
[null,null,null,null,null,null,""]
[null,null,null,null,null,null,""]
[null,null,null,null,null,null,""]
[null,null,null,null,null,null,""]
[null,null,null,null,null,null,""]
[null,null,null,null,null,null,""]
[null,null,null,null,null,null,""]
[null,null,null,null,null,null,""]
[null,null,null,null,null,null,{"$f":"IF((F70-C70)=0, \"\",(F70-C70))","v":""}]
[null,null,null,null,null,null,""]
[null,null,null,null,null,null,""]
[null,null,null,null,null,null,""]
[null,null,null,null,null,null,""]
[null,null,null,null,null,null,""]
[null,null,null,null,null,null,""]
[null,null,null,null,null,null,""]
[null,null,null,null,null,null,""]
[null,null,null,null,null,null,""]
[null,null,null,null,null,null,""]
[null,null,null,null,null,null,""]
[null,null,null,null,null,null,""]
[null,null,null,null,null,null,""]
[null,null,null,null,null,null,""]
[null,null,null,null,null,null,""]
[null,null,null,null,null,null,""]
[null,null,null,null,null,null,""]
[null,null,null,null,null,null,""]
[null,null,null,null,null,null,""]
[null,null,null,null,null,null,""]
[null,null,null,null,null,null,""]
[null,null,null,null,null,null,""]
[null,null,null,null,null,null,""]
[null,null,null,null,null,null,""]
[null,null,null,null,null,null,""]
[null,null,null,null,null,null,""]
[null,null,null,null,null,null,""]
[null,null,null,null,null,null,""]
[null,null,null,null,null,null,""]
[null,null,null,null,null,null,""]
[null,null,null,null,null,null,""]
[null,null,null,null,null,null,""]
[null,null,null,null,null,null,""]
[null,null,null,null,null,null,""]
[null,null,null,null,null,null,""]
[null,null,null,null,null,null,""]
[null,null,null,null,null,null,""]
[null,null,null,null,null,null,""]
[null,null,null,null,null,null,""]
[null,null,null,null,null,null,""]
[null,null,null,null,null,null,""]
[null,null,null,null,null,null,""]
[null,null,null,null,null,null,""]
[null,null,null,null,null,null,""]
[null,null,null,null,null,null,""]
[null,null,null,null,null,null,""]
[null,null,null,null,null,null,""]
[null,null,null,null,null,null,""]
[null,null,null,null,null,null,""]
[null,null,null,null,null,null,""]
[null,null,null,null,null,null,""]
[null,null,null,null,null,null,""]
[null,null,null,null,null,null,""]
[null,null,null,null,null,null,""]
[null,null,null,null,null,null,""]
[null,null,null,null,null,null,""]
[null,null,null,null,null,null,""]
[null,null,null,null,null,null,""]
[null,null,null,null,null,null,""]
[null,null,null,null,null,null,""]
[null,null,null,null,null,null,""]
[null,null,null,null,null,null,""]
[null,null,null,null,null,null,""]
[null,null,null,null,null,null,{"$f":"IF((F134-C134)=0, \"\",(F134-C134))","v":""}]
[null,null,null,null,null,null,""]
[null,null,null,null,null,null,""]
[null,null,null,null,null,null,""]
[null,null,null,null,null,null,""]
[null,null,null,null,null,null,""]
[null,null,null,null,null,null,""]
[null,null,null,null,null,null,""]
[null,null,null,null,null,null,""]
[null,null,null,null,null,null,""]
[null,null,null,null,null,null,""]
[null,null,null,null,null,null,""]
[null,null,null,null,null,null,""]
[null,null,null,null,null,null,""]
[null,null,null,null,null,null,""]
[null,null,null,null,null,null,""]
[null,null,null,null,null,null,""]
[null,null,null,null,null,null,""]
[null,null,null,null,null,null,""]
[null,null,null,null,null,null,""]
[null,null,null,null,null,null,""]
[null,null,null,null,null,null,""]
[null,null,null,null,null,null,""]
[null,null,null,null,null,null,""]
[null,null,null,null,null,null,""]
[null,null,null,null,null,null,""]
[null,null,null,null,null,null,""]
[null,null,null,null,null,null,""]
[null,null,null,null,null,null,""]
[null,null,null,null,null,null,""]
[null,null,null,null,null,null,""]
[null,null,null,null,null,null,""]
[null,null,null,null,null,null,""]
[null,null,null,null,null,null,""]
[null,null,null,null,null,null,""]
[null,null,null,null,null,null,""]
[null,null,null,null,null,null,""]
[null,null,null,null,null,null,""]
[null,null,null,null,null,null,""]
[null,null,null,null,null,null,""]
[null,null,null,null,null,null,""]
[null,null,null,null,null,null,""]
[null,null,null,null,null,null,""]
[null,null,null,null,null,null,""]
[null,null,null,null,null,null,""]
[null,null,null,null,null,null,""]
[null,null,null,null,null,null,""]
[null,null,null,null,null,null,""]
[null,null,null,null,null,null,""]
[null,null,null,null,null,null,""]
[null,null,null,null,null,null,""]
[null,null,null,null,null,null,""]
[null,null,null,null,null,null,""]
[null,null,null,null,null,null,""]

{"sheet":"Graphs","index":11,"n_rows":0,"n_cols":0,"rows_kept":0,"cut":false,"hidden":false,"merged":[]}